[Event "GER-ch Youth-U14 2022"]
[Site "Willingen"]
[Date "2022.06.11"]
[Round "9.1"]
[White "Honisch, Alexander"]
[Black "Ermitsch, Magnus"]
[Result "1/2-1/2"]
[ECO "E11"]
[WhiteElo "1878"]
[BlackElo "2222"]
[Annotator "TA"]
[PlyCount "96"]
[EventDate "2022.06.05"]
[EventType "swiss"]
[EventRounds "9"]
[EventCountry "GER"]
[SourceTitle "playchess.com"]
[Source "ChessBase"]
[SourceQuality "1"]
[TimeControl "40/4500+30:900+30"]

{[%evp 15,96,-18,20,21,20,28,22,25,29,13,40,36,30,17,37,33,30,29,34,29,40,5,68,56,88,42,116,105,106,93,183,208,229,210,228,237,336,227,357,0,323,240,228,228,252,235,225,256,250,132,200,194,180,165,161,152,171,167,162,158,150,137,179,90,96,37,37,37,37,37,37,0,0,0,0,0,0,0,0,0,0,0,0]} 1. d4 {[%emt 0:00:00]} Nf6 {[%emt 0:00:00]} 2. c4 {[%emt 0:00:00]} e6 {[%emt 0:00:00]} 3. Nf3 {[%emt 0:00:00]} Bb4+ {[%emt 0:00:00]} 4. Nbd2 {[%emt 0:00:00]} d5 {[%emt 0:00:00]} 5. a3 {[%emt 0:00:00]} Be7 {[%emt 0:00:00]} 6. Qc2 {[%emt 0:04:48]} O-O {[%emt 0:00:00]} 7. e4 {[%emt 0:05:07]} dxe4 {[%emt 0:00:00]} 8. Nxe4 {[%emt 0:00:51]} Nbd7 {[%emt 0:00:00] was the old line (8...Nxe4).} 9. Nxf6+ {[%emt 0:06:10] E11: Bogo-Indian.} Nxf6 {[%emt 0:00:00]} 10. Be2 {[%emt 0:06:28]} b6 {[%emt 0:01:18]} 11. O-O {[%emt 0:02:12]} Bb7 {[%emt 0:01:04]} 12. Rd1 {[%emt 0:01:33] [#]} Be4 $146 {[%emt 0:06:13]} (12... a5 {with more complications.} 13. Ne5 Nd7 14. Be3 Nxe5 15. dxe5 Qc8) ({Predecessor:} 12... Qc8 13. b4 Be4 14. Qb3 Qb7 15. Bb2 Rfd8 16. g3 a6 17. Rac1 b5 18. Nd2 Bc6 {½-½ (36) Margvelashvili,G (2534)-Pourkashiyan,A (2348) Philadelphia 2015}) 13. Qc3 {[%emt 0:04:43]} Qc8 {[%emt 0:03:44]} 14. Bf4 {[%emt 0:06:59]} (14. Ne5 {is interesting.} Rd8 15. Qg3 c5 16. Bh6) 14... Qb7 {[%emt 0:01:48]} (14... a5 {looks sharper.} 15. Ne5 Rd8 16. Qg3 c5) 15. b4 $1 {[%emt 0:13:12][%cal Bb2b4,Bb4b5][%mdl 32]} a5 {[%emt 0:06:37]} 16. b5 {[%emt 0:06:06]} Rac8 {[%emt 0:03:18]} 17. Qb3 {[%emt 0:06:13]} Rfd8 {[%emt 0:07:28]} 18. Rac1 {[%emt 0:04:24]} Nd7 {[%emt 0:03:21]} (18... c5 $11) 19. Qe3 $14 {[%emt 0:04:50]} Bf5 {[%emt 0:26:03]} 20. Nd2 {[%emt 0:04:06]} ({White should play} 20. Ne5 $16 Nxe5 21. Bxe5) 20... Nf6 {[%emt 0:02:06]} (20... c5 $14) 21. Bf3 $16 {[%emt 0:01:48]} Qa7 {[%emt 0:00:36]} 22. Bc6 {[%emt 0:02:49]} a4 {[%emt 0:00:56]} (22... Nd7 $16) 23. h3 $18 {[%emt 0:01:07]} h6 {[%emt 0:01:57]} 24. Nf3 {[%emt 0:00:53]} Bd6 {[%emt 0:00:50]} 25. Ne5 {[%emt 0:01:40] Against Nd7} Qa5 {[%emt 0:02:12]} (25... Bxe5 {keeps fighting.} 26. Bxe5 (26. dxe5 Nh7 $16) (26. Qxe5 Nd7 $16) 26... Nd7) 26. Kh1 {[%emt 0:01:11]} Qa7 {[%emt 0:00:36]} (26... Bxe5 $142 27. Bxe5 (27. Qxe5 Ne4 $18) (27. dxe5 Rxd1+ 28. Rxd1 Nh7 $18) 27... Nd7) 27. Kg1 $2 {[%emt 0:01:06]} ({Better is} 27. g4 $18 Bh7 28. g5 hxg5 29. Bxg5) 27... Nh7 $2 {[%emt 0:01:45][%mdl 8192]} (27... Qa5 $1 $11) 28. c5 {[%emt 0:00:43]} Bxe5 {[%emt 0:01:24]} 29. dxe5 {[%emt 0:00:18]} ({Don't take} 29. Qxe5 $6 Nf8) 29... Nf8 {[%emt 0:00:23]} 30. Qc3 {[%emt 0:00:29]} Ng6 {[%emt 0:00:53]} 31. Be3 {[%emt 0:00:08] A strong pair of Bishops.} Ne7 {[%emt 0:00:15] [#]} 32. Bf3 {[%emt 0:00:49]} (32. Bd7 $1 $18 {[%cal Rd7c8]} Rb8 33. Qb4) 32... Rb8 {[%emt 0:01:35]} (32... Nd5 $16 {was worth a try.} 33. cxb6 cxb6 34. Qxc8 Rxc8 35. Rxc8+ Kh7) 33. cxb6 {[%emt 0:00:31]} cxb6 {[%emt 0:00:34]} 34. Rd6 {[%emt 0:00:41][%cal Oe3b6]} Rdc8 {[%emt 0:00:48]} 35. Qd2 {[%emt 0:00:34] Strongly threatening Rxc8+.} Rxc1+ {[%emt 0:02:50]} 36. Qxc1 {[%emt 0:00:01][%cal Oe3b6] Bxb6! is the strong threat.} Nd5 {[%emt 0:00:15]} 37. Bxd5 {[%emt 0:00:31]} exd5 {[%emt 0:00:05]} 38. Qc6 {[%emt 0:00:41] White is more active.} Qa5 {[%emt 0:02:17] [#]} 39. Qxd5 {[%emt 0:00:37]} (39. Kh2 $1 $18) 39... Qc3 $16 {[%emt 0:00:35]} 40. Rd8+ {[%emt 0:00:40]} ({Of course not} 40. Bxb6 $6 Rxb6 41. Rxb6 Qc1+ 42. Kh2 Qf4+ 43. Kh1 Qc1+ 44. Kh2 Qf4+ 45. Kh1 Qc1+ 46. Kh2 $11) (40. Rxb6 $16 Rxb6 41. Bxb6) 40... Rxd8 $14 {[%emt 0:00:07]} 41. Qxd8+ {[%emt 0:00:00][%mdl 4096] Endgame KQB-KQB} Kh7 {[%emt 0:00:00]} 42. Qd6 {[%emt 0:00:00]} Qb2 {[%emt 0:00:00]} 43. Bxb6 {[%emt 0:00:00][%cal Oe5e6]} Qc1+ {[%emt 0:00:00] The position is equal.} 44. Kh2 {[%emt 0:00:00]} Qf4+ {[%emt 0:00:00]} 45. Kg1 {[%emt 0:00:12]} Qc1+ {[%emt 0:00:00]} 46. Kh2 {[%emt 0:00:09] aiming for Be3.} Qf4+ {[%emt 0:00:00]} 47. Kg1 {[%emt 0:00:48] And now Be3 would win.} Qc1+ {[%emt 0:00:00]} 48. Kh2 {[%emt 0:00:09] Threatens to win with Be3.} Qf4+ $1 {[%emt 0:00:00] Black defended with fortune.  Weighted Error Value: White=0.27 (precise) /Black=0.34} 1/2-1/2

[Event "GER-ch Youth-U14 2022"]
[Site "Willingen"]
[Date "2022.06.11"]
[Round "9.2"]
[White "Deuer, Marius"]
[Black "Klaska, Philipp Leon"]
[Result "1-0"]
[ECO "A34"]
[WhiteElo "2359"]
[BlackElo "1946"]
[Annotator "TA"]
[PlyCount "81"]
[EventDate "2022.06.05"]
[EventType "swiss"]
[EventRounds "9"]
[EventCountry "GER"]
[SourceTitle "playchess.com"]
[Source "ChessBase"]
[SourceQuality "1"]
[TimeControl "40/4500+30:900+30"]

{[%evp 10,81,20,22,10,14,16,8,6,8,9,10,21,19,23,24,29,11,57,56,55,55,56,35,48,0,43,48,60,39,48,25,30,25,14,8,72,65,62,69,63,0,14,0,0,0,0,0,0,0,131,125,208,203,194,195,189,178,225,228,221,220,262,245,323,323,320,320,421,377,367,362,362,355]} 1. c4 {[%emt 0:00:00]} Nf6 {[%emt 0:00:00]} 2. Nc3 {[%emt 0:00:00]} c5 {[%emt 0:00:00]} 3. Nf3 {[%emt 0:00:00]} d5 {[%emt 0:00:00]} 4. cxd5 {[%emt 0:00:00]} Nxd5 {[%emt 0:00:00]} 5. e3 {[%emt 0:00:00]} Nc6 {[%emt 0:00:00]} 6. Bb5 {[%emt 0:00:00]} e6 {[%emt 0:05:51] A34: Symmetrical English: 2 Nc3, lines with ...d5.} 7. O-O {[%emt 0:03:14]} Be7 {[%emt 0:05:44]} 8. Ne5 {[%emt 0:04:40]} Bd7 {[%emt 0:04:52] The position is equal.} 9. Bxc6 {[%emt 0:11:47]} Bxc6 {[%emt 0:01:15]} 10. Nxc6 {[%emt 0:00:21]} bxc6 {[%emt 0:00:05]} 11. Na4 {[%emt 0:01:20]} O-O {[%emt 0:01:39]} 12. b3 {[%emt 0:01:58]} Nb6 {[%emt 0:03:12]} 13. Nb2 {[%emt 0:00:56] [#]} Qd5 $146 {[%emt 0:06:37]} (13... a5 $11) ({Predecessor:} 13... Bf6 14. Qc2 Qd5 15. Rb1 Rfd8 16. Rd1 Bxb2 17. Bxb2 c4 18. Bc3 cxb3 19. axb3 Qd3 {½-½ (46) Oboladze,L (2318)-Piyumantha,M (2167) Konya 2018}) 14. Qc2 $14 {[%emt 0:01:00]} Rfd8 {[%emt 0:04:50][%cal Bf8d8,Bd8d7,Bd7b7,Bb7b3][%mdl 32]} 15. d3 {[%emt 0:01:22]} Bf6 {[%emt 0:01:25]} 16. Rd1 {[%emt 0:00:23]} Rd7 {[%emt 0:00:46]} 17. a4 {[%emt 0:08:57]} (17. e4 $14 {deserves consideration.} Qh5 18. Be3) 17... a5 {[%emt 0:16:25]} 18. Rb1 {[%emt 0:02:01]} Qd6 {[%emt 0:09:56]} 19. e4 {[%emt 0:09:40]} Bd4 {[%emt 0:05:23]} 20. Qe2 {[%emt 0:00:25]} Rb8 {[%emt 0:02:32]} 21. Be3 {[%emt 0:08:07]} Rdb7 {[%emt 0:02:43]} 22. Qd2 {[%emt 0:08:45]} Qc7 {[%emt 0:05:29]} (22... h6 $11 {remains equal.}) 23. Qxa5 $16 {[%emt 0:07:28]} Nd5 {[%emt 0:00:24]} 24. Qxc7 {[%emt 0:05:51]} Nxc7 {[%emt 0:00:06]} 25. Bxd4 {[%emt 0:06:45]} (25. Nc4 $1 $14 {was preferrable.}) 25... cxd4 $11 {[%emt 0:00:06]} 26. Rbc1 {[%emt 0:01:34]} Rxb3 {[%emt 0:02:02]} 27. Rxc6 {[%emt 0:00:20]} Rxb2 {[%emt 0:01:32]} (27... Ne8 $5 28. Nc4 Rxd3 $11) 28. Rxc7 {[%emt 0:00:05][%mdl 4096] Endgame KRR-KRR} Rd2 {[%emt 0:03:38][%cal Rd2d1]} 29. Rcc1 {[%emt 0:00:04]} Rxd1+ {[%emt 0:01:25]} (29... Ra2 $11 {keeps the balance.}) 30. Rxd1 {[%emt 0:00:01] KR-KR} Kf8 {[%emt 0:01:07]} (30... Ra8 $16 {was necessary.}) 31. Ra1 {[%emt 0:01:01]} Ke7 {[%emt 0:00:19]} 32. f4 {[%emt 0:01:15]} Kd7 {[%emt 0:00:56] [#]} 33. a5 $1 {[%emt 0:00:52]} Kc7 {[%emt 0:01:01] [#]} (33... f6 $142 34. Ra4 Ra8 35. Rxd4+ Kc6) 34. Ra4 $1 $18 {[%emt 0:01:11]} Rd8 {[%emt 0:00:31]} 35. Rb4 {[%emt 0:00:54]} Rd6 {[%emt 0:00:16]} 36. Kf2 {[%emt 0:00:24]} Ra6 {[%emt 0:00:24]} 37. Rc4+ {[%emt 0:00:05]} ({Weaker is} 37. Rxd4 Rxa5 38. Rc4+ Kd6 $16) 37... Kb8 {[%emt 0:00:30]} 38. Rxd4 {[%emt 0:00:42]} Rxa5 39. Rd8+ {[%emt 0:00:26]} Kc7 {[%emt 0:00:19]} 40. Rf8 {[%emt 0:00:11]} f6 {[%emt 0:00:29]} 41. Rf7+ {[%emt 0:16:10] Weighted Error Value: White=0.07 (flawless) /Black=0.24 (precise)} 1-0

[Event "GER-ch Youth-U14 2022"]
[Site "Willingen"]
[Date "2022.06.11"]
[Round "9.3"]
[White "Sreyas Payyappat"]
[Black "Kocharin, Timur"]
[Result "1-0"]
[ECO "B32"]
[WhiteElo "2169"]
[BlackElo "1867"]
[Annotator "TA"]
[PlyCount "93"]
[EventDate "2022.06.05"]
[EventType "swiss"]
[EventRounds "9"]
[EventCountry "GER"]
[SourceTitle "playchess.com"]
[Source "ChessBase"]
[SourceQuality "1"]
[TimeControl "40/4500+30:900+30"]

{[%evp 21,93,25,28,15,5,6,10,2,66,60,59,59,45,62,57,57,39,53,56,59,56,57,83,69,81,60,60,89,72,89,85,78,79,71,73,82,98,85,100,64,101,91,64,85,185,178,137,0,181,166,184,190,1039,1028,1019,1003,1003,1000,913,909,866,858,1241,1425,1149,1070,12829,5289,12841,12841,12837,1843,29992,29993]} 1. e4 {[%emt 0:00:00]} c5 {[%emt 0:00:00]} 2. Nf3 {[%emt 0:00:00][%cal Bg1f3,Bf3d4,Bd4b5][%mdl 32]} Nc6 {[%emt 0:00:00]} 3. d4 {[%emt 0:00:00]} cxd4 {[%emt 0:00:00]} 4. Nxd4 {[%emt 0:00:00]} e5 {[%emt 0:00:00]} 5. Nb5 {[%emt 0:00:00]} d6 {[%emt 0:00:00]} 6. c4 {[%emt 0:00:00]} Be7 {[%emt 0:00:00]} 7. N1c3 {[%emt 0:00:00]} a6 {[%emt 0:00:00]} 8. Na3 {[%emt 0:00:00]} f5 {[%emt 0:00:00]} 9. exf5 {[%emt 0:00:00]} Bxf5 {[%emt 0:00:00]} 10. Bd3 {[%emt 0:00:00]} Be6 {[%emt 0:00:00]} 11. O-O {[%emt 0:01:05]} Nf6 {[%emt 0:00:00]} 12. Be3 {[%emt 0:00:49] B32: Sicilian: Löwenthal and Kalashnikov Variations.} O-O {[%emt 0:12:25]} 13. Nd5 {[%emt 0:02:50] Inhibits Nb4.} Rc8 {[%emt 0:11:45]} 14. Rc1 {[%emt 0:04:02] [#] The position is equal.} e4 $146 {[%emt 0:08:23]} (14... Kh8 $11) ({Predecessor:} 14... Kh8 15. Nb6 Rb8 16. Be2 Qe8 17. Nb1 Qg6 18. Kh1 e4 19. Nc3 Ne5 20. Ncd5 Nxd5 21. Nxd5 {½-½ (29) Sadvakasov,D (2611)-Lautier,J (2676) Moscow 2004}) 15. Nxf6+ $14 {[%emt 0:06:33]} Bxf6 {[%emt 0:02:42]} 16. Bxe4 {[%emt 0:00:19]} Bxb2 {[%emt 0:03:41] [#]} 17. Bxh7+ $1 {[%emt 0:02:03]} Kh8 {[%emt 0:06:56] [#]} 18. Qh5 $1 {[%emt 0:07:25] Threatening mate with Bg6+.} Bg4 $1 {[%emt 0:01:30]} 19. Qxg4 {[%emt 0:00:11]} Kxh7 {[%emt 0:00:35]} 20. Rb1 {[%emt 0:16:11]} Bxa3 {[%emt 0:08:37]} 21. Bg5 {[%emt 0:01:59] Prevents Qf6.} ({Inferior is} 21. Rxb7 Qf6 22. Rb3 Bc5 23. Bxc5 dxc5 $17) 21... Qa5 {[%emt 0:10:26] aiming for ...Qf5.} 22. Qh3+ {[%emt 0:01:08]} ({Stronger than} 22. Rxb7 Qf5 23. Qh4+ Kg8 $17) 22... Kg8 {[%emt 0:04:11] And now ...Rc7 would win.} 23. Qe6+ {[%emt 0:02:19]} Kh7 $1 {[%emt 0:01:18] ...Qf5 is the strong threat.} (23... Kh8 $2 24. Rb3 Qxg5 25. Rh3+ Qh6 26. Rxh6+ gxh6 27. Qxh6+ Kg8 28. Qe6+ Kg7 29. Qg4+ Kf7 30. Qf3+ Ke7 31. Qxa3 $18) 24. Rb3 {[%emt 0:01:57][%cal Rb3h3]} Qxg5 {[%emt 0:00:52]} 25. Rh3+ {[%emt 0:01:53]} Qh6 {[%emt 0:00:13][%cal Oc8e8]} 26. Qe4+ {[%emt 0:00:54]} Kh8 {[%emt 0:01:31] Hoping for ...Qxh3.} 27. Qe3 {[%emt 0:01:32][%mdl 64] Pin} Bc5 {[%emt 0:00:09]} 28. Rxh6+ {[%emt 0:00:04]} gxh6 {[%emt 0:00:04]} 29. Qxh6+ {[%emt 0:00:10]} Kg8 {[%emt 0:00:05] [#]} 30. Qg6+ $1 {[%emt 0:02:27][%mdl 1024] White has strong compensation.} Kh8 {[%emt 0:00:44]} 31. Kh1 {[%emt 0:00:50]} Rc7 {[%emt 0:02:50]} 32. f4 {[%emt 0:01:55]} Ne5 {[%emt 0:02:29]} (32... Rh7 $16 {is a better defense.}) 33. Qh6+ $18 {[%emt 0:00:38]} Kg8 {[%emt 0:00:02]} 34. g4 {[%emt 0:10:25] Really sharp!} (34. Rd1 $16 Nc6 35. Rd5) 34... Rg7 $2 {[%emt 0:03:44]} (34... Rh7 $11 35. Qe6+ Kh8) 35. Qe6+ {[%emt 0:00:58]} Kh8 {[%emt 0:00:38] [#]} 36. g5 {[%emt 0:00:50][%cal Bg4g5,Bg5g6,Bg6g7][%mdl 32]} ({Don't play} 36. Qh6+ $6 Kg8 $16) 36... Nc6 $2 {[%emt 0:05:26]} (36... b6 37. Kg2 Rgf7) 37. Rf3 {[%emt 0:03:35] White wants to mate with g6.} Rh7 {[%emt 0:01:20]} 38. Rh3 {[%emt 0:01:16]} Rxh3 {[%emt 0:01:23]} 39. Qxh3+ {[%emt 0:00:07]} Kg7 {[%emt 0:00:04]} 40. Qh6+ {[%emt 0:02:48]} Kf7 {[%emt 0:00:55]} 41. g6+ {[%emt 0:15:25]} Ke8 {[%emt 0:00:00]} 42. g7 {[%emt 0:00:00]} Rg8 {[%emt 0:00:00]} 43. Qg6+ Ke7 {[%emt 0:00:00]} 44. f5 {[%emt 0:00:00] Qe6+ would kill now.} Nd8 {[%emt 0:00:00] Prevents Qe6+.} 45. f6+ {[%emt 0:00:00]} Kd7 {[%emt 0:00:05]} 46. f7 {[%emt 0:00:00]} (46. Qh7 $142 Bd4 47. Qxg8 Bxf6 48. Qh7 Bxg7 49. Qxg7+ Ke6 50. Kg2) 46... Nxf7 {[%emt 0:00:37]} 47. Qxf7+ {[%emt 0:00:00] Weighted Error Value: White=0.07 (flawless) /Black=0.58} 1-0

[Event "GER-ch Youth-U14 2022"]
[Site "Willingen"]
[Date "2022.06.11"]
[Round "9.4"]
[White "Sommer, Justus"]
[Black "Möller, Maurin"]
[Result "1-0"]
[ECO "B40"]
[WhiteElo "1868"]
[BlackElo "1780"]
[Annotator "NA RC COMBH"]
[PlyCount "111"]
[EventDate "2022.06.05"]
[EventType "swiss"]
[EventRounds "9"]
[EventCountry "GER"]
[SourceTitle "playchess.com"]
[Source "ChessBase"]
[SourceQuality "1"]
[TimeControl "40/4500+30:900+30"]

1. e4 {[%emt 0:00:00]} c5 {[%emt 0:00:00]} 2. Nf3 {[%emt 0:00:00]} e6 {[%emt 0:00:00]} 3. c3 {[%emt 0:00:00]} d5 {[%emt 0:00:00]} 4. exd5 {[%emt 0:00:00]} Qxd5 {[%emt 0:00:00]} 5. d4 {[%emt 0:00:00]} Nf6 {[%emt 0:00:00]} 6. Na3 {[%emt 0:00:00]} a6 {[%emt 0:00:00]} 7. Be3 {[%emt 0:00:00]} Nbd7 {[%emt 0:00:00]} 8. Bc4 {[%emt 0:00:50]} Qc6 {[%emt 0:00:00]} 9. O-O {[%emt 0:06:34]} b5 {[%emt 0:00:00]} 10. Be2 {[%emt 0:00:31]} Be7 {[%emt 0:00:00]} 11. dxc5 {[%emt 0:04:06]} Nxc5 {[%emt 0:00:00]} 12. Nd4 {[%emt 0:02:14]} Qc7 {[%emt 0:01:48]} 13. Bf3 {[%emt 0:06:26]} Nce4 {[%emt 0:02:36]} 14. Nac2 {[%emt 0:06:09]} O-O {[%emt 0:01:34]} 15. a4 {[%emt 0:02:17]} Rb8 {[%emt 0:00:53]} 16. axb5 {[%emt 0:02:10]} axb5 {[%emt 0:00:18]} 17. Qd3 {[%emt 0:03:06]} Nc5 {[%emt 0:05:17]} 18. Qe2 {[%emt 0:08:16]} Bd7 {[%emt 0:02:05]} 19. Nb4 {[%emt 0:01:42]} Rb6 {[%emt 0:12:12]} 20. Qc2 {[%emt 0:04:35]} g6 {[%emt 0:08:49] [#]} 21. Nb3 $1 {[%emt 0:01:24]} Bc8 {[%emt 0:01:51]} 22. Nd3 {[%emt 0:01:28]} Nxb3 {[%emt 0:01:15]} (22... Nfd7 $16 23. Nbxc5 Nxc5) 23. Qxb3 {[%emt 0:00:39]} Rb8 {[%emt 0:00:18]} 24. Ba7 {[%emt 0:00:46]} e5 {[%emt 0:01:19]} 25. Bxb8 {[%emt 0:00:22]} Qxb8 {[%emt 0:00:05]} 26. Nb4 {[%emt 0:01:44]} ({Much less strong is} 26. Ra8 $6 Qc7 $16) 26... Be6 {[%emt 0:06:55] [#]} 27. Qd1 $1 {[%emt 0:02:54]} e4 {[%emt 0:06:35]} 28. Nc6 {[%emt 0:01:17]} Qc7 {[%emt 0:00:17]} 29. Nxe7+ {[%emt 0:00:08]} Qxe7 {[%emt 0:00:01]} 30. Be2 {[%emt 0:00:34]} Nd5 {[%emt 0:00:08]} 31. Qd4 {[%emt 0:04:28]} Nf4 $18 {[%emt 0:02:26]} 32. Rfe1 {[%emt 0:05:27]} Qg5 {[%emt 0:01:32]} 33. Bf1 {[%emt 0:00:34]} Bc4 {[%emt 0:00:26]} 34. g3 {[%emt 0:03:09]} Bxf1 {[%emt 0:02:25]} 35. Kxf1 {[%emt 0:00:11]} Nd3 {[%emt 0:00:30]} 36. Rxe4 {[%emt 0:04:59]} Rd8 {[%emt 0:00:47]} 37. Qe3 {[%emt 0:00:31]} Qf5 {[%emt 0:00:31]} 38. Re8+ {[%emt 0:01:49]} Rxe8 {[%emt 0:00:00]} 39. Qxe8+ {[%emt 0:00:10]} Kg7 {[%emt 0:00:03]} 40. Qe3 {[%emt 0:00:34]} h5 {[%emt 0:01:01]} 41. Qd4+ {[%emt 0:17:56]} Kh7 {[%emt 0:15:18]} 42. Rd1 {[%emt 0:07:14]} Nxb2 {[%emt 0:01:13]} 43. Rd2 {[%emt 0:00:49]} Nc4 {[%emt 0:00:15]} 44. Re2 {[%emt 0:00:47]} Qc8 {[%emt 0:02:13]} (44... Qg4 $142 45. Qf6 Qf5 46. Qxf5 gxf5) 45. Qd5 {[%emt 0:01:49]} Qc7 {[%emt 0:01:10]} 46. Re8 {[%emt 0:01:10]} Nd6 {[%emt 0:00:22]} 47. Re3 {[%emt 0:01:24]} Nc4 {[%emt 0:03:11]} 48. Re2 {[%emt 0:00:00]} Qa7 {[%emt 0:00:00]} 49. Re8 {[%emt 0:00:00]} f6 {[%emt 0:00:00]} 50. h4 {[%emt 0:00:00]} Qg7 {[%emt 0:00:00]} 51. Rb8 {[%emt 0:00:00]} Kh6 {[%emt 0:00:00]} 52. Rg8 {[%emt 0:00:00]} Qh7 {[%emt 0:00:00]} 53. Qd8 {[%emt 0:00:00]} Qf7 {[%emt 0:00:00]} 54. Rf8 {[%emt 0:00:00]} Ne3+ {[%emt 0:00:00]} 55. fxe3 {[%emt 0:00:00]} Qc4+ {[%emt 0:00:00]} 56. Kg1 {[%emt 0:00:00]} 1-0

[Event "GER-ch Youth-U14 2022"]
[Site "Willingen"]
[Date "2022.06.11"]
[Round "9.5"]
[White "Besou, Hussain"]
[Black "Krüger, Arthur"]
[Result "1-0"]
[ECO "D27"]
[WhiteElo "2094"]
[BlackElo "1988"]
[Annotator "TA"]
[PlyCount "113"]
[EventDate "2022.06.05"]
[EventType "swiss"]
[EventRounds "9"]
[EventCountry "GER"]
[SourceTitle "playchess.com"]
[Source "ChessBase"]
[SourceQuality "1"]
[TimeControl "40/4500+30:900+30"]

{[%evp 24,113,2,-6,0,-12,0,0,0,0,-12,-28,-27,-29,-12,-14,-4,0,0,0,1,-57,0,0,0,0,104,112,315,297,445,449,581,553,629,627,29976,29977,5293,1141,3530,3356,29972,2661,1576,2331,1910,1970,29984,29985,29983,2443,3092,2360,1943,1916,2093,2150,1715,1629,2123,2007,1983,1906,1643,1543,1277,2122,1912,1922,1787,1520,5490,1522,2997,2095,1933,1839,1457,1731,1591,1087,1570,1526,1220,1006,1004,709,29973,29972,29968,5589]} 1. d4 {[%emt 0:00:00]} d5 {[%emt 0:00:00]} 2. c4 {[%emt 0:00:00]} dxc4 {[%emt 0:00:00]} 3. e3 {[%emt 0:00:00]} Nf6 {[%emt 0:00:00]} 4. Nf3 {[%emt 0:00:00]} e6 {[%emt 0:00:00]} 5. Bxc4 {[%emt 0:00:00]} c5 {[%emt 0:00:00]} 6. O-O {[%emt 0:00:00]} a6 {[%emt 0:00:00]} 7. a4 {[%emt 0:00:00]} cxd4 {[%emt 0:00:00]} 8. exd4 {[%emt 0:00:00]} Nc6 {[%emt 0:00:00]} 9. Nc3 {[%emt 0:00:00]} Be7 {[%emt 0:00:00]} 10. Re1 {[%emt 0:00:00]} O-O {[%emt 0:00:00]} 11. Bg5 {[%emt 0:00:00]} h6 {[%emt 0:00:00]} 12. Bh4 {[%emt 0:00:00]} Bd7 {[%emt 0:00:00]} 13. Rc1 {[%emt 0:02:22]} Re8 {[%emt 0:04:22] [#] D27: Queen's Gambit Accepted: Classical main line: 7 e4!? and 7 a4.} 14. Bg3 $146 {[%emt 0:16:28]} ({Predecessor:} 14. Ne5 Rc8 15. Ba2 Nxe5 16. dxe5 Nd5 17. Bxe7 Nxe7 18. Ne4 Rxc1 19. Qxc1 Bxa4 20. Nd6 {½-½ (50) Neyman,I (2328)-Schlosser,P (2507) Austria 2021}) 14... Bb4 {[%emt 0:09:59]} 15. Ne5 {[%emt 0:07:01]} Rc8 {[%emt 0:05:06] The position is equal.} 16. Ba2 {[%emt 0:02:08]} Nd5 {[%emt 0:10:51]} 17. Nd3 {[%emt 0:25:47]} Qa5 {[%emt 0:08:48][%cal Rb4c3]} 18. Nxb4 {[%emt 0:01:10]} Ncxb4 {[%emt 0:04:18]} (18... Qxb4 {is more complex.} 19. Nxd5 exd5 20. Bxd5 Rxe1+ 21. Qxe1 Qxb2 22. h3 Qxd4 23. Qe4 Qxe4 24. Bxe4 Nd4) 19. Bb3 {[%emt 0:00:18]} Rc6 {[%emt 0:06:49]} 20. Re5 {[%emt 0:08:21]} f6 {[%emt 0:11:05]} 21. Re1 {[%emt 0:00:20]} Rec8 {[%emt 0:02:23][%cal Rd5c3]} 22. Qf3 {[%emt 0:02:41]} ({Better is} 22. h3 $11) 22... Kh8 {[%emt 0:01:51]} (22... Nxc3 $15 23. bxc3 Nd5) 23. h4 $11 {[%emt 0:01:10]} Nxc3 {[%emt 0:05:09]} 24. bxc3 {[%emt 0:00:07]} ({Much weaker is} 24. Rxc3 Nd5 25. Bxd5 Rxc3 26. bxc3 Rxc3 $17) 24... Qb6 {[%emt 0:02:22]} (24... Nd5 $11 {remains equal.} 25. c4 {[#]} Rxc4 $1 26. Bxc4 Rxc4) 25. c4 $16 {[%emt 0:03:40] White is more active.} Be8 $2 {[%emt 0:03:25] Black cannot hold the game after this.} (25... Qxd4 $2 26. Red1 Qc5 27. Rxd7 $18) (25... Qd8 $16) 26. c5 $18 {[%emt 0:00:43]} Qa5 {[%emt 0:01:21]} (26... Qd8 {was called for.} 27. Bxe6 Rxe6) 27. Rxe6 {[%emt 0:01:18] Strongly threatening Re7.} Rxe6 {[%emt 0:00:29]} 28. Bxe6 {[%emt 0:00:04]} Rd8 {[%emt 0:00:37]} 29. Qxb7 {[%emt 0:01:40]} Rxd4 {[%emt 0:00:53]} 30. Qe7 {[%emt 0:00:58]} Qd8 {[%emt 0:04:05]} 31. Qf8+ {[%emt 0:00:13]} Kh7 {[%emt 0:00:10]} 32. Bd6 {[%emt 0:00:10] Intending h5 and mate.} Nc6 {[%emt 0:04:25]} 33. Bg8+ {[%emt 0:00:10] A strong pair of Bishops.} (33. Qg8+ $142 Kg6 34. g4 Rxg4+ 35. Bxg4 Ne5 36. h5+ Kg5 37. Qxg7+ Ng6 38. Rc4) 33... Kg6 {[%emt 0:00:14]} 34. Re1 {[%emt 0:00:15]} Ne5 {[%emt 0:00:55]} 35. Rxe5 {[%emt 0:00:19][%csl Ge5][%cal Rh4h5]} Rd1+ {[%emt 0:01:36]} 36. Kh2 {[%emt 0:00:06][%csl Ge5][%cal Rh4h5]} fxe5 {[%emt 0:00:13] [#]} 37. Bf7+ $1 {[%emt 0:00:10][%mdl 512]} Kf5 {[%emt 0:00:27]} (37... Bxf7 38. Qxd8) 38. Bxe8+ {[%emt 0:00:05]} Qf6 {[%emt 0:01:21]} 39. Bd7+ {[%emt 0:02:15]} Kf4 {[%emt 0:01:06]} 40. Qxf6+ {[%emt 0:02:32]} gxf6 {[%emt 0:00:01]} 41. Bc8 {[%emt 0:15:20][%cal Oc5c6]} a5 {[%emt 0:00:00]} 42. Be7 {[%emt 0:00:00] Black must now prevent c6.} Rc1 {[%emt 0:00:00]} 43. Bd7 {[%emt 0:00:00] aiming for c6.} Ke4 {[%emt 0:00:00]} 44. c6 {[%emt 0:00:00] Bd8 is the strong threat.} Kd5 {[%emt 0:00:00]} 45. Bxf6 {[%emt 0:00:00]} (45. g4 $142 Rc2 46. Kg3) 45... Kd6 {[%emt 0:00:00]} 46. Bd8 {[%emt 0:00:00]} Rc4 {[%emt 0:00:00]} 47. Bxa5 {[%emt 0:00:00]} Rxh4+ {[%emt 0:00:00]} 48. Kg3 {[%emt 0:00:00]} Rxa4 {[%emt 0:00:00]} 49. Bd8 {[%emt 0:00:00]} Ra8 {[%emt 0:00:00]} 50. Bb6 {[%emt 0:00:00]} Ra4 {[%emt 0:01:02]} 51. Be3 {[%emt 0:00:00]} h5 {[%emt 0:00:37]} 52. Kf3 {[%emt 0:00:00]} Kc7 {[%emt 0:03:35]} 53. Bc5 {[%emt 0:00:00]} Rc4 {[%emt 0:00:59]} 54. Be7 {[%emt 0:00:00]} Ra4 {[%emt 0:01:47]} 55. Be8 {[%emt 0:00:00][%cal Oe7d8] Hoping for Bd8+!} h4 {[%emt 0:01:11] [#]} 56. Bd8+ $1 {[%emt 0:00:00][%mdl 512]} Kc8 {[%emt 0:01:43]} (56... Kd6 57. c7) 57. c7 {Weighted Error Value: White=0.11 (very precise) /Black=1.32} (57. Bb6 $142 Rf4+ 58. Ke3 Rc4 59. Bd7+ Kb8 60. Kd3 Rc1 61. Kd2 Rc4 62. Kd3) 1-0